fUST/lending_fUST_20250128
["ID","MTS","AMOUNT","RATE_DAILY","PERIOD"]
[350665595,1738043438295,-500.0,0.00016438,2]
[350665596,1738043438304,-500.0,0.00016438,2]
[350665597,1738043438313,-500.0,0.00016438,2]
[350665598,1738043438323,-500.0,0.00016438,2]
[350665599,1738043438332,-321.85477674,0.00016438,2]
[350665600,1738043438341,-500.0,0.00016438,2]
[350665601,1738043438351,-500.0,0.00016438,2]
[350665602,1738043438360,-500.0,0.00016438,2]
[350665603,1738043438371,-500.0,0.00016438,2]
[350665604,1738043438383,-500.0,0.00016438,2]
[350665605,1738043438392,-500.0,0.00016438,2]
[350665606,1738043438402,-500.0,0.00016438,2]
[350665607,1738043438411,-500.0,0.00016438,2]
[350665608,1738043438422,-500.0,0.00016438,2]
[350665609,1738043438431,-500.0,0.00016438,2]
[350665610,1738043438441,-500.0,0.00016438,2]
[350665611,1738043438450,-500.0,0.00016438,2]
[350665612,1738043438459,-500.0,0.00016438,2]
[350665613,1738043438469,-500.0,0.00016438,2]
[350665614,1738043438479,-500.0,0.00016438,2]
[350665615,1738043438488,-500.0,0.00016438,2]
[350665616,1738043438498,-500.0,0.00016438,2]
[350665617,1738043438507,-500.0,0.00016438,2]
[350665618,1738043438520,-500.0,0.00016438,2]
[350665619,1738043438529,-500.0,0.00016438,2]
[350665620,1738043438539,-500.0,0.00016438,2]
[350665621,1738043438548,-500.0,0.00016438,2]
[350665622,1738043438557,-500.0,0.00016438,2]
[350665623,1738043438567,-629.78,0.00016438,2]
[350665624,1738043438576,-500.0,0.00016438,2]
[350665625,1738043438585,-500.0,0.00016438,2]
[350665626,1738043438595,-1231.41,0.00016438,2]
[350665627,1738043438604,-500.0,0.00016569,2]
[350665628,1738043438613,-500.0,0.00016574,2]
[350665629,1738043438623,-500.0,0.00016574,2]
[350665630,1738043438632,-327.81420933,0.00016575,2]
[350665631,1738043438642,-500.0,0.00016575,2]
[350665632,1738043438651,-500.0,0.00016575,2]
[350665633,1738043438660,-597.7682787,0.00016575,2]
[350665742,1738043443025,-51.92866979,0.00016575,2]
[350665743,1738043443036,-500.0,0.00016575,2]
[350665744,1738043443045,-500.0,0.00016575,2]
[350665745,1738043443055,-214.1,0.00016575,2]
[350665746,1738043443065,-236.89126819,0.00016575,2]
[350665747,1738043443074,-500.0,0.00016575,2]
[350665748,1738043443083,-500.0,0.00016575,2]
[350665749,1738043443093,-500.0,0.00016575,2]
[350665750,1738043443102,-500.0,0.00016575,2]
[350665751,1738043443112,-500.0,0.00016575,2]
[350665752,1738043443121,-500.0,0.00016575,2]
[350665753,1738043443130,-500.0,0.00016575,2]
[350665754,1738043443140,-500.0,0.00016575,2]
[350665755,1738043443150,-500.0,0.00016575,2]
[350665756,1738043443159,-500.0,0.00016575,2]
[350665757,1738043443169,-500.0,0.00016575,2]
[350665758,1738043443179,-500.0,0.00016575,2]
[350665759,1738043443188,-500.0,0.00016575,2]
[350665760,1738043443198,-500.0,0.00016575,2]
[350665761,1738043443207,-500.0,0.00016575,2]
[350665762,1738043443216,-500.0,0.00016575,2]
[350665763,1738043443226,-629.78,0.00016575,2]
[350665764,1738043443235,-500.0,0.00016575,2]
[350665765,1738043443245,-500.0,0.00016575,2]
[350665766,1738043443254,-1231.41,0.00016575,2]
[350665767,1738043443263,-500.0,0.00016712,2]
[350665768,1738043443272,-500.0,0.00016712,2]
[350665769,1738043443281,-500.0,0.00016712,2]
[350665770,1738043443290,-500.0,0.00016712,2]
[350665771,1738043443300,-500.0,0.00016712,2]
[350665772,1738043443309,-500.0,0.00016712,2]
[350665773,1738043443319,-500.0,0.00016712,2]
[350665774,1738043443328,-500.0,0.00016712,2]
[350665775,1738043443337,-500.0,0.00016712,2]
[350665776,1738043443346,-500.0,0.00016712,2]
[350665777,1738043443356,-500.0,0.00016712,2]
[350665778,1738043443367,-629.78,0.00016712,2]
[350665779,1738043443380,-525.85369367,0.00016712,2]
[350665780,1738043443389,-500.0,0.00016712,2]
[350665781,1738043443399,-1231.41,0.00016712,2]
[350665782,1738043443409,-500.0,0.00016848,2]
[350665783,1738043443419,-163.57309221,0.00016848,2]
[350665784,1738043443429,-500.0,0.00016848,2]
[350665785,1738043443439,-161.58675782,0.00016848,2]
[350665786,1738043443449,-500.0,0.00016848,2]
[350665787,1738043443458,-531.01442274,0.00016848,2]
[350665788,1738043443468,-500.0,0.00016848,2]
[350665789,1738043443478,-500.0,0.00016848,2]
[350665790,1738043443487,-422.1298432,0.00016848,2]
[350665791,1738043443496,-500.0,0.00016848,2]
[350665792,1738043443505,-500.0,0.00016848,2]
[350665793,1738043443515,-500.0,0.00016848,2]
[350665794,1738043443525,-500.0,0.00016848,2]
[350665795,1738043443534,-500.0,0.00016848,2]
[350665796,1738043443544,-500.0,0.00016849,2]
[350665797,1738043443553,-500.0,0.00016849,2]
[350665798,1738043443562,-469.12077144,0.00016849,2]
[350665808,1738043445618,153.0,0.00014639,2]
[350665998,1738043447629,-0.3211021,0.00016849,2]
[350666010,1738043449491,153.0,0.00014638,2]
[350666017,1738043739816,262.144329,0.00013973,2]
[350666018,1738043864137,153.0,0.00014589,2]
[350666019,1738043868718,153.0,0.00014588,2]
[350666022,1738043932239,153.0,0.00014583,2]
[350666023,1738043937549,153.0,0.00014583,2]
[350666024,1738043984547,153.0,0.00014579,2]
[350666025,1738043988552,153.0,0.00014579,2]
[350666026,1738044020351,400.756325,0.00014961,2]
[350666027,1738044044751,153.0,0.00014574,2]
[350666028,1738044048626,153.0,0.00014574,2]
[350666029,1738044404808,153.0,0.00014547,2]
[350666030,1738044408432,177.14444,0.00013699,2]
[350666031,1738044437099,-540.3224408,0.00015224,2]
[350666032,1738044439097,-865.14378585,0.00015224,2]
[350666079,1738044546146,-405.29424045,0.00015224,2]
[350666080,1738044546169,-84.70575955,0.00015224,2]
[350666082,1738044567232,-126.97357132,0.00015224,2]
[350666083,1738044567257,-300.0,0.00015557,2]
[350666084,1738044567278,-24445.45582868,0.00015558,2]
[350666085,1738044570126,-454.54417132,0.00015558,2]
[350666086,1738044570150,-35.45582868,0.00015558,2]
[350666087,1738044570830,268.037113,0.00013973,2]
[350666088,1738044612265,450.0,0.00015101,2]
[350666153,1738044632306,-119.57362692,0.00015558,2]
[350666155,1738044632316,-248.21091875,0.00015868,2]
[350666168,1738044632440,-1217.94933895,0.00015868,2]
[350666170,1738044632449,-300.0,0.00015999,2]
[350666172,1738044632459,-563.75656128,0.00015999,2]
[350666175,1738044632469,-500.0,0.00015999,2]
[350666177,1738044632478,-546.90331591,0.00015999,2]
[350666180,1738044632488,-1444.22219609,0.00016,2]
[350666183,1738044632499,-1021.86804867,0.00016,2]
[350666307,1738044638174,-113307.65730414,0.00016,2]
[350666316,1738044638261,-2547.20648903,0.00016,2]
[350666924,1738045090971,166.0,0.00015101,2]
[350666925,1738045129982,550.0,0.00015101,2]
[350666926,1738045275938,315.0,0.00015101,2]
[350666928,1738045458362,272.685257,0.00013973,2]
[350666929,1738045534353,332.3095705,0.00014787,2]
[350666930,1738045558440,13292.1526619,0.00014787,2]
[350666935,1738045627142,-200.378162,0.00015169,2]
[350666936,1738045627163,-156.58499453,0.00015455,2]
[350666937,1738045627184,-99.87738347,0.00015653,2]
[350666938,1738045635191,-1922.84202921,0.0001573,2]
[350666943,1738045745136,-858.00529991,0.0001541,2]
[350666944,1738045750565,-18.17056539,0.0001541,2]
[350666945,1738045750586,-300.0,0.00015729,2]
[350666946,1738045750608,-10521.61392053,0.0001573,2]
[350666947,1738045750629,-274.73206344,0.000159,2]
[350666948,1738045750649,-248.61510279,0.00015999,2]
[350666949,1738045750670,-320.88072237,0.00016,2]
[350666972,1738045832389,-200.378163,0.00015612,2]
[350666973,1738045832398,-172.0,0.00015999,2]
[350666974,1738045832408,-6416.17803294,0.00016,2]
[350666983,1738045838265,-61074.93025763,0.00016,2]
[350666997,1738045846434,-774.01090653,0.00016,2]
[350667000,1738045968069,771.35,0.00010959,2]
[350667003,1738046300417,276.198495,0.00013973,2]
[350667005,1738046364605,177.14444,0.00013699,2]
[350667006,1738046837143,-260.28836292,0.00015333,2]
[350667007,1738046851138,-39.71163708,0.00015333,2]
[350667008,1738046851166,-841.84212937,0.00015335,2]
[350667009,1738046947156,-300.0,0.00015333,2]
[350667010,1738046947178,-21723.17537042,0.00015335,2]
[350667011,1738046957123,-135.02775141,0.00015335,2]
[350667012,1738046957146,-195.13424859,0.00015515,2]
[350667047,1738047032700,-124.66562151,0.00015515,2]
[350667048,1738047032710,-300.0,0.00015803,2]
[350667049,1738047032720,-13245.59911628,0.00015804,2]
[350667050,1738047032729,-6188.38995177,0.00016,2]
[350667051,1738047032739,-707.3836,0.00016,2]
[350667052,1738047032748,-1081.22975732,0.00016338,2]
[350667053,1738047032757,-298.69805937,0.00016428,2]
[350667054,1738047032766,-500.0,0.00016437,2]
[350667055,1738047032775,-399.39812613,0.00016437,2]
[350667056,1738047032784,-500.0,0.00016437,2]
[350667057,1738047032793,-194.80077763,0.00016437,2]
[350667058,1738047032803,-500.0,0.00016437,2]
[350667059,1738047032812,-500.0,0.00016437,2]
[350667060,1738047032821,-500.0,0.00016437,2]
[350667061,1738047032830,-505.24640775,0.00016437,2]
[350667062,1738047032840,-500.0,0.00016437,2]
[350667063,1738047032849,-500.0,0.00016437,2]
[350667064,1738047032858,-500.0,0.00016437,2]
[350667065,1738047032867,-261.35893833,0.00016437,2]
[350667066,1738047032876,-500.0,0.00016437,2]
[350667067,1738047032885,-500.0,0.00016437,2]
[350667068,1738047032895,-500.0,0.00016437,2]
[350667069,1738047032904,-500.0,0.00016437,2]
[350667070,1738047032913,-254.45695815,0.00016437,2]
[350667071,1738047032923,-500.0,0.00016437,2]
[350667072,1738047032932,-500.0,0.00016437,2]
[350667073,1738047032941,-500.0,0.00016437,2]
[350667074,1738047032950,-500.0,0.00016437,2]
[350667075,1738047032959,-500.0,0.00016437,2]
[350667076,1738047032969,-500.0,0.00016437,2]
[350667077,1738047032979,-500.0,0.00016437,2]
[350667078,1738047032988,-286.27435903,0.00016437,2]
[350667079,1738047032997,-500.0,0.00016437,2]
[350667080,1738047033007,-500.0,0.00016437,2]
[350667081,1738047033016,-500.0,0.00016437,2]
[350667082,1738047033026,-500.0,0.00016437,2]
[350667083,1738047033036,-250.23658939,0.00016437,2]
[350667084,1738047033046,-500.0,0.00016437,2]
[350667085,1738047033055,-500.0,0.00016437,2]
[350667086,1738047033065,-500.0,0.00016437,2]
[350667087,1738047033074,-500.0,0.00016437,2]
[350667088,1738047033084,-500.0,0.00016437,2]
[350667089,1738047033093,-500.0,0.00016437,2]
[350667090,1738047033102,-500.0,0.00016437,2]
[350667091,1738047033111,-500.0,0.00016437,2]
[350667092,1738047033121,-500.0,0.00016437,2]
[350667093,1738047033130,-500.0,0.00016437,2]
[350667094,1738047033142,-500.0,0.00016437,2]
[350667095,1738047033152,-500.0,0.00016437,2]
[350667096,1738047033161,-500.0,0.00016437,2]
[350667097,1738047033171,-300.0,0.00016437,2]
[350667098,1738047033181,-500.0,0.00016437,2]
[350667099,1738047033190,-500.0,0.00016438,2]
[350667100,1738047033199,-504.57330344,0.00016438,2]
[350667101,1738047033209,-440.92979906,0.00016438,2]
[350667102,1738047033219,-503.18762165,0.00016438,2]
[350667103,1738047033228,-500.0,0.00016438,2]
[350667104,1738047033238,-500.79220791,0.00016438,2]
[350667105,1738047033247,-500.0,0.00016438,2]
[350667106,1738047033256,-500.0,0.00016438,2]
[350667107,1738047033266,-500.0,0.00016438,2]
[350667108,1738047033275,-194.46,0.00016438,2]
[350667109,1738047033285,-500.0,0.00016438,2]
[350667110,1738047033295,-500.0,0.00016438,2]
[350667111,1738047033304,-500.0,0.00016438,2]
[350667112,1738047033314,-523.23,0.00016438,2]
[350667113,1738047033323,-500.0,0.00016438,2]
[350667114,1738047033333,-500.0,0.00016438,2]
[350667115,1738047033342,-500.0,0.00016438,2]
[350667116,1738047033352,-500.0,0.00016438,2]
[350667117,1738047033363,-500.0,0.00016438,2]
[350667118,1738047033372,-500.0,0.00016438,2]
[350667119,1738047033381,-501.02060968,0.00016438,2]
[350667120,1738047033391,-500.0,0.00016438,2]
[350667121,1738047033400,-151.0,0.00016438,2]
[350667122,1738047033410,-500.0,0.00016438,2]
[350667123,1738047033419,-467.60490307,0.00016438,2]
[350667124,1738047033429,-500.0,0.00016438,2]
[350667125,1738047033438,-151.0,0.00016438,2]
[350667126,1738047033447,-500.0,0.00016438,2]
[350667127,1738047033456,-168.266089,0.00016438,2]
[350667128,1738047033466,-500.0,0.00016438,2]
[350667129,1738047033475,-500.0,0.00016438,2]
[350667130,1738047033486,-501.41700292,0.00016438,2]
[350667131,1738047033499,-500.0,0.00016438,2]
[350667132,1738047033508,-500.0,0.00016438,2]
[350667133,1738047033518,-500.0,0.00016438,2]
[350667134,1738047033528,-151.0,0.00016438,2]
[350667135,1738047033538,-151.0,0.00016438,2]
[350667136,1738047033548,-500.0,0.00016438,2]
[350667137,1738047033557,-500.0,0.00016438,2]
[350667138,1738047033567,-500.0,0.00016438,2]
[350667139,1738047033576,-151.0,0.00016438,2]
[350667140,1738047033586,-151.0,0.00016438,2]
[350667141,1738047033595,-151.0,0.00016438,2]
[350667142,1738047033604,-500.0,0.00016438,2]
[350667143,1738047033613,-500.0,0.00016438,2]
[350667144,1738047033622,-500.0,0.00016438,2]
[350667145,1738047033631,-500.0,0.00016438,2]
[350667146,1738047033640,-500.0,0.00016438,2]
[350667147,1738047033649,-500.0,0.00016438,2]
[350667148,1738047033660,-500.0,0.00016438,2]
[350667149,1738047033669,-500.0,0.00016438,2]
[350667150,1738047033679,-500.0,0.00016438,2]
[350667151,1738047033688,-500.0,0.00016438,2]
[350667152,1738047033697,-153.830393,0.00016438,2]
[350667153,1738047033707,-500.0,0.00016438,2]
[350667154,1738047033717,-500.0,0.00016438,2]
[350667155,1738047033727,-595.04977387,0.00016438,2]
[350667156,1738047033738,-500.0,0.00016438,2]
[350667157,1738047033748,-500.0,0.00016438,2]
[350667158,1738047033757,-500.0,0.00016438,2]
[350667159,1738047033766,-435.31111305,0.00016438,2]
[350667160,1738047033775,-510.11911414,0.00016438,2]
[350667161,1738047033785,-500.0,0.00016438,2]
[350667162,1738047033795,-500.0,0.00016438,2]
[350667163,1738047033804,-500.0,0.00016438,2]
[350667164,1738047033814,-496.66118993,0.00016438,2]
[350667165,1738047033823,-151.0,0.00016438,2]
[350667166,1738047033832,-151.0,0.00016438,2]
[350667167,1738047033842,-151.0,0.00016438,2]
[350667168,1738047033851,-500.0,0.00016438,2]
[350667169,1738047033861,-151.0,0.00016438,2]
[350667170,1738047033870,-151.0,0.00016438,2]
[350667171,1738047033879,-151.0,0.00016438,2]
[350667172,1738047033889,-151.0,0.00016438,2]
[350667173,1738047033898,-151.0,0.00016438,2]
[350667174,1738047033907,-151.0,0.00016438,2]
[350667175,1738047033916,-500.0,0.00016438,2]
[350667176,1738047033925,-500.0,0.00016438,2]
[350667177,1738047033934,-500.0,0.00016438,2]
[350667178,1738047033944,-189.4280903,0.00016438,2]
[350667179,1738047033953,-500.0,0.00016438,2]
[350667180,1738047033962,-251.70470437,0.00016438,2]
[350667181,1738047033972,-500.0,0.00016438,2]
[350667182,1738047033982,-500.0,0.00016438,2]
[350667183,1738047033991,-506.98724892,0.00016438,2]
[350667184,1738047034001,-500.0,0.00016438,2]
[350667185,1738047034010,-516.01,0.00016438,2]
[350667186,1738047034020,-500.0,0.00016438,2]
[350667187,1738047034029,-151.0,0.00016438,2]
[350667188,1738047034038,-500.0,0.00016438,2]
[350667189,1738047034047,-151.0,0.00016438,2]
[350667190,1738047034056,-151.0,0.00016438,2]
[350667191,1738047034065,-151.0,0.00016438,2]
[350667192,1738047034075,-152.079119,0.00016438,2]
[350667193,1738047034084,-500.0,0.00016438,2]
[350667194,1738047034093,-500.0,0.00016438,2]
[350667195,1738047034103,-151.0,0.00016438,2]
[350667196,1738047034112,-151.0,0.00016438,2]
[350667197,1738047034121,-151.0,0.00016438,2]
[350667198,1738047034130,-500.0,0.00016438,2]
[350667199,1738047034139,-151.0,0.00016438,2]
[350667200,1738047034149,-151.0,0.00016438,2]
[350667201,1738047034158,-500.0,0.00016438,2]
[350667202,1738047034168,-500.0,0.00016438,2]
[350667203,1738047034178,-500.0,0.00016438,2]
[350667204,1738047034188,-151.0,0.00016438,2]
[350667205,1738047034197,-151.0,0.00016438,2]
[350667206,1738047034207,-151.0,0.00016438,2]
[350667207,1738047034217,-151.0,0.00016438,2]
[350667208,1738047034227,-151.0,0.00016438,2]
[350667209,1738047034240,-151.0,0.00016438,2]
[350667210,1738047034249,-151.0,0.00016438,2]
[350667211,1738047034259,-151.0,0.00016438,2]
[350667212,1738047034269,-151.0,0.00016438,2]
[350667213,1738047034279,-151.0,0.00016438,2]
[350667214,1738047034290,-151.0,0.00016438,2]
[350667215,1738047034300,-154.711855,0.00016438,2]
[350667216,1738047034310,-151.0,0.00016438,2]
[350667217,1738047034320,-151.0,0.00016438,2]
[350667218,1738047034331,-151.0,0.00016438,2]
[350667219,1738047034341,-151.0,0.00016438,2]
[350667220,1738047034351,-151.0,0.00016438,2]
[350667221,1738047034361,-151.0,0.00016438,2]
[350667222,1738047034371,-500.0,0.00016438,2]
[350667223,1738047034381,-504.19,0.00016438,2]
[350667224,1738047034391,-358.24,0.00016438,2]
[350667225,1738047034401,-454.92,0.00016438,2]
[350667226,1738047034411,-500.0,0.00016438,2]
[350667227,1738047034420,-500.0,0.00016438,2]
[350667228,1738047034430,-3136.66,0.00016438,2]
[350667229,1738047034440,-500.0,0.00016438,2]
[350667230,1738047034450,-500.0,0.00016438,2]
[350667231,1738047034460,-500.0,0.00016438,2]
[350667232,1738047034471,-500.0,0.00016438,2]
[350667233,1738047034484,-398.43,0.00016438,2]
[350667234,1738047034497,-1146.49,0.00016438,2]
[350667235,1738047034507,-500.0,0.00016438,2]
[350667236,1738047034518,-500.0,0.00016438,2]
[350667237,1738047034529,-151.0,0.00016438,2]
[350667238,1738047034538,-151.0,0.00016438,2]
[350667239,1738047034548,-151.0,0.00016438,2]
[350667240,1738047034558,-500.0,0.00016438,2]
[350667241,1738047034568,-154.401358,0.00016475,2]
[350667242,1738047034577,-151.0,0.00016475,2]
[350667243,1738047034588,-152.0,0.00016512,2]
[350667244,1738047034598,-151.0,0.0001657,2]
[350667245,1738047034610,-159.958909,0.0001657,2]
[350667246,1738047034619,-151.0,0.00016571,2]
[350667247,1738047034629,-154.401358,0.00016572,2]
[350667248,1738047034639,-154.401358,0.00016572,2]
[350667249,1738047034648,-151.0,0.00016572,2]
[350667250,1738047034658,-151.0,0.00016572,2]
[350667251,1738047034667,-151.0,0.00016572,2]
[350667252,1738047034677,-151.0,0.00016572,2]
[350667253,1738047034687,-151.0,0.00016573,2]
[350667254,1738047034696,-151.0,0.00016573,2]
[350667255,1738047034706,-151.0,0.00016573,2]
[350667256,1738047034715,-151.0,0.00016573,2]
[350667257,1738047034724,-151.0,0.00016573,2]
[350667258,1738047034736,-151.0,0.00016573,2]
[350667259,1738047034745,-151.0,0.00016574,2]
[350667260,1738047034755,-151.0,0.00016574,2]
[350667261,1738047034765,-151.0,0.00016574,2]
[350667262,1738047034775,-151.0,0.00016574,2]
[350667263,1738047034784,-151.0,0.00016574,2]
[350667264,1738047034794,-151.0,0.00016574,2]
[350667265,1738047034803,-151.0,0.00016574,2]
[350667266,1738047034813,-151.0,0.00016574,2]
[350667267,1738047034822,-151.0,0.00016574,2]
[350667268,1738047034831,-151.0,0.00016574,2]
[350667269,1738047034840,-154.401358,0.00016574,2]
[350667270,1738047034850,-154.401358,0.00016574,2]
[350667271,1738047034859,-154.401358,0.00016574,2]
[350667272,1738047034869,-154.401358,0.00016574,2]
[350667273,1738047034878,-151.0,0.00016574,2]
[350667274,1738047034887,-151.0,0.00016574,2]
[350667275,1738047034897,-151.0,0.00016574,2]
[350667276,1738047034906,-262.734523,0.00016574,2]
[350667277,1738047034915,-151.0,0.00016574,2]
[350667278,1738047034924,-151.0,0.00016574,2]
[350667279,1738047034934,-151.0,0.00016574,2]
[350667280,1738047034943,-151.0,0.00016574,2]
[350667281,1738047034952,-151.0,0.00016574,2]
[350667282,1738047034962,-151.0,0.00016574,2]
[350667283,1738047034971,-151.0,0.00016574,2]
[350667284,1738047034980,-500.0,0.00016575,2]
[350667285,1738047034990,-153.852683,0.00016575,2]
[350667286,1738047034999,-151.0,0.00016575,2]
[350667287,1738047035009,-151.0,0.00016575,2]
[350667288,1738047035018,-151.0,0.00016575,2]
[350667289,1738047035110,-553.304015,0.00016575,2]
[350667290,1738047035120,-553.304015,0.00016575,2]
[350667291,1738047035129,-197.635708,0.00016575,2]
[350667292,1738047035139,-197.635708,0.00016575,2]
[350667293,1738047035148,-197.635708,0.00016575,2]
[350667294,1738047035158,-197.635708,0.00016575,2]
[350667295,1738047035167,-152.607856,0.00016575,2]
[350667296,1738047035178,-155.32224,0.00016575,2]
[350667297,1738047035187,-151.0,0.00016575,2]
[350667298,1738047035197,-151.0,0.00016575,2]
[350667299,1738047035206,-500.0,0.00016575,2]
[350667300,1738047035215,-151.0,0.00016575,2]
[350667301,1738047035224,-154.401358,0.00016575,2]
[350667302,1738047035234,-154.401358,0.00016575,2]
[350667303,1738047035244,-500.0,0.00016575,2]
[350667304,1738047035253,-500.0,0.00016575,2]
[350667305,1738047035262,-151.0,0.00016575,2]
[350667306,1738047035272,-500.0,0.00016575,2]
[350667307,1738047035282,-151.0,0.00016575,2]
[350667308,1738047035291,-500.0,0.00016575,2]
[350667309,1738047035301,-500.0,0.00016575,2]
[350667310,1738047035311,-500.0,0.00016575,2]
[350667311,1738047035320,-151.0,0.00016575,2]
[350667312,1738047035329,-500.0,0.00016575,2]
[350667313,1738047035338,-500.0,0.00016575,2]
[350667314,1738047035348,-500.0,0.00016575,2]
[350667315,1738047035357,-151.0,0.00016575,2]
[350667316,1738047035366,-500.0,0.00016575,2]
[350667317,1738047035375,-287.15137355,0.00016575,2]
[350667318,1738047035384,-333.05188571,0.00016575,2]
[350667319,1738047035394,-151.0,0.00016575,2]
[350667320,1738047035403,-256.76,0.00016575,2]
[350667321,1738047035412,-151.0,0.00016575,2]
[350667322,1738047035422,-500.0,0.00016575,2]
[350667323,1738047035431,-500.0,0.00016575,2]
[350667324,1738047035440,-500.0,0.00016575,2]
[350667325,1738047035448,-151.0,0.00016575,2]
[350667326,1738047035457,-500.0,0.00016575,2]
[350667327,1738047035466,-151.0,0.00016575,2]
[350667328,1738047035475,-500.0,0.00016575,2]
[350667329,1738047035486,-500.0,0.00016575,2]
[350667330,1738047035498,-630.23749976,0.00016575,2]
[350667331,1738047035508,-151.0,0.00016575,2]
[350667332,1738047035517,-151.0,0.00016575,2]
[350667333,1738047035526,-151.0,0.00016575,2]
[350667334,1738047035537,-151.0,0.00016575,2]
[350667335,1738047035546,-151.0,0.00016575,2]
[350667336,1738047035555,-504.19,0.00016575,2]
[350667337,1738047035563,-500.0,0.00016575,2]
[350667338,1738047035574,-3136.66,0.00016575,2]
[350667339,1738047035584,-1146.49,0.00016575,2]
[350667340,1738047035593,-500.0,0.00016575,2]
[350667341,1738047035602,-151.0,0.00016575,2]
[350667342,1738047035611,-1035.0047255,0.0001668,2]
[350667343,1738047035620,-500.0,0.00016711,2]
[350667344,1738047035629,-151.0,0.00016712,2]
[350667345,1738047035638,-500.0,0.00016712,2]
[350667346,1738047035647,-151.0,0.00016712,2]
[350667347,1738047035657,-151.0,0.00016712,2]
[350667348,1738047035667,-553.304015,0.00016712,2]
[350667349,1738047035676,-197.635708,0.00016712,2]
[350667350,1738047035686,-197.635708,0.00016712,2]
[350667351,1738047035695,-151.0,0.00016712,2]
[350667352,1738047035705,-151.0,0.00016712,2]
[350667353,1738047035716,-500.0,0.00016712,2]
[350667354,1738047035725,-151.0,0.00016712,2]
[350667355,1738047035735,-154.401358,0.00016712,2]
[350667356,1738047035745,-154.401358,0.00016712,2]
[350667357,1738047035754,-500.0,0.00016712,2]
[350667358,1738047035767,-151.0,0.00016712,2]
[350667359,1738047035778,-151.0,0.00016712,2]
[350667360,1738047035787,-500.0,0.00016712,2]
[350667361,1738047035796,-410.53891625,0.00016712,2]
[350667362,1738047035806,-151.0,0.00016712,2]
[350667363,1738047035815,-151.0,0.00016712,2]
[350667364,1738047035827,-500.0,0.00016712,2]
[350667365,1738047035837,-562.11,0.00016712,2]
[350667366,1738047035847,-500.0,0.00016712,2]
[350667367,1738047035856,-151.0,0.00016712,2]
[350667368,1738047035865,-246.6679169,0.00016712,2]
[350667369,1738047035875,-151.0,0.00016712,2]
[350667370,1738047035884,-500.0,0.00016712,2]
[350667371,1738047035893,-500.0,0.00016712,2]
[350667372,1738047035903,-151.0,0.00016712,2]
[350667373,1738047035912,-151.0,0.00016712,2]
[350667374,1738047035922,-151.0,0.00016712,2]
[350667375,1738047035931,-151.0,0.00016712,2]
[350667376,1738047035940,-151.0,0.00016712,2]
[350667377,1738047035949,-504.19,0.00016712,2]
[350667378,1738047035958,-500.0,0.00016712,2]
[350667379,1738047035967,-3136.66,0.00016712,2]
[350667380,1738047035977,-1146.49,0.00016712,2]
[350667381,1738047035987,-500.0,0.00016712,2]